[Event "SWE-ch Masters Elite 2018"]
[Site "Ronneby"]
[Date "2018.06.30"]
[Round "1"]
[White "Wiedenkeller, Michael"]
[Black "Lind, Jan Olov"]
[Result "1/2-1/2"]
[ECO "D71"]
[WhiteElo "2468"]
[BlackElo "2234"]
[Annotator "ChessBase"]
[PlyCount "85"]
[EventDate "2018.06.30"]
[EventType "tourn"]
[EventCountry "SWE"]
[SourceTitle "playchess.com"]
[Source "ChessBase"]
[SourceQuality "1"]
[TimeControl "40/5400+30:1800+30"]

1. d4 {[%emt 0:00:00]} Nf6 {[%emt 0:00:00]} 2. c4 {[%emt 0:00:06]} g6 {[%emt 0:00:00]} 3. g3 {[%emt 0:00:44]} c5 {[%emt 0:03:04]} 4. Nf3 {[%emt 0:01:07]} cxd4 {[%emt 0:03:00]} 5. Nxd4 {[%emt 0:00:08]} Bg7 {[%emt 0:00:17]} 6. Nc3 {[%emt 0:02:33]} d6 {[%emt 0:01:04]} 7. Bg2 {[%emt 0:00:20]} O-O {[%emt 0:00:09]} 8. O-O {[%emt 0:00:33]} Nc6 {[%emt 0:07:53]} 9. Nc2 {[%emt 0:09:22]} Bd7 {[%emt 0:05:24]} 10. Bg5 {[%emt 0:08:07]} Ng4 {[%emt 0:07:03]} 11. Bd2 {[%emt 0:07:07]} Rb8 {[%emt 0:02:22]} 12. h3 {[%emt 0:02:17]} Nf6 {[%emt 0:03:53]} 13. Kh2 {[%emt 0:06:54]} a6 {[%emt 0:04:48]} 14. a4 {[%emt 0:01:53]} Ne8 {[%emt 0:06:28]} 15. Rb1 {[%emt 0:04:19]} Nc7 {[%emt 0:00:58]} 16. b4 {[%emt 0:07:35]} b6 {[%emt 0:04:54]} 17. Ne3 {[%emt 0:11:14]} Ne6 {[%emt 0:04:36]} 18. b5 {[%emt 0:02:27]} axb5 {[%emt 0:00:34]} 19. cxb5 {[%emt 0:00:25]} Na5 {[%emt 0:02:23]} 20. Ncd5 {[%emt 0:02:21]} Nc5 {[%emt 0:05:05]} 21. Nb4 {[%emt 0:06:38]} e6 {[%emt 0:03:12]} 22. Na6 {[%emt 0:08:34]} Nxa6 {[%emt 0:07:48]} 23. bxa6 {[%emt 0:00:14]} d5 {[%emt 0:01:02]} 24. Bxa5 {[%emt 0:05:49]} bxa5 {[%emt 0:00:21]} 25. Qd3 {[%emt 0:01:02]} Rxb1 {[%emt 0:07:26]} 26. Rxb1 {[%emt 0:00:16]} Qa8 {[%emt 0:00:38]} 27. Rb6 {[%emt 0:02:12]} h5 {[%emt 0:11:24]} 28. Kg1 {[%emt 0:02:01]} Qd8 {[%emt 0:03:51]} 29. Rb1 {[%emt 0:03:01]} Bc6 {[%emt 0:01:45]} 30. a7 {[%emt 0:01:26]} Be5 {[%emt 0:01:09]} 31. Qa6 {[%emt 0:01:06]} Ba8 {[%emt 0:00:41]} 32. Rb5 {[%emt 0:01:55]} Bc7 {[%emt 0:00:38]} 33. Nc2 {[%emt 0:00:41]} Qc8 {[%emt 0:01:03]} 34. Qxc8 {[%emt 0:00:25]} Rxc8 {[%emt 0:00:02]} 35. Rc5 {[%emt 0:00:53]} Kf8 {[%emt 0:00:14]} 36. Nd4 {[%emt 0:00:30]} Ke8 {[%emt 0:00:29]} 37. Nb5 {[%emt 0:00:32]} Kd7 {[%emt 0:00:26]} 38. Nxc7 {[%emt 0:00:55]} Rxc7 {[%emt 0:00:13]} 39. Rxa5 {[%emt 0:00:18]} Kc8 {[%emt 0:01:19]} 40. f4 {[%emt 0:00:58]} Kb7 {[%emt 0:01:44]} 41. Kf2 {[%emt 0:07:47]} Kb6 {[%emt 0:02:30]} 42. Rb5+ {[%emt 0:00:32]} Kxa7 {[%emt 0:00:54]} 43. Rb4 1/2-1/2

[Event "SWE-ch Masters Elite 2018"]
[Site "Ronneby"]
[Date "2018.06.30"]
[Round "1"]
[White "Rydstrom, Tom"]
[Black "Logdahl, Harald"]
[Result "1/2-1/2"]
[ECO "B05"]
[WhiteElo "2314"]
[BlackElo "2249"]
[Annotator "NA"]
[PlyCount "126"]
[EventDate "2018.06.30"]
[EventType "tourn"]
[EventCountry "SWE"]
[SourceTitle "playchess.com"]
[Source "ChessBase"]
[SourceQuality "1"]
[TimeControl "40/5400+30:1800+30"]

1. e4 {[%emt 0:01:01]} Nf6 {[%emt 0:00:00]} 2. e5 {[%emt 0:00:01]} Nd5 {[%emt 0:00:00]} 3. d4 {[%emt 0:00:02]} d6 {[%emt 0:00:00]} 4. Nf3 {[%emt 0:00:57]} Bg4 {[%emt 0:00:25]} 5. Be2 {[%emt 0:00:22]} c6 {[%emt 0:00:05]} 6. c4 {[%emt 0:00:22]} Nb6 {[%emt 0:00:46]} 7. Qb3 {[%emt 0:00:14]} Qc8 {[%emt 0:32:52]} 8. exd6 {[%emt 0:13:17]} exd6 {[%emt 0:00:17]} 9. O-O {[%emt 0:00:27]} Be7 {[%emt 0:02:04]} 10. Re1 {[%emt 0:00:43]} O-O {[%emt 0:01:17]} 11. a4 {[%emt 0:00:13]} Bf6 {[%emt 0:09:36]} 12. a5 {[%emt 0:23:43]} N6d7 {[%emt 0:01:24]} 13. Bf4 {[%emt 0:15:05]} Re8 {[%emt 0:22:31]} 14. Nbd2 {[%emt 0:01:19]} c5 {[%emt 0:01:47]} 15. Bxd6 {[%emt 0:04:00]} cxd4 {[%emt 0:00:46]} 16. Nxd4 {[%emt 0:05:08]} Bxe2 {[%emt 0:00:32]} 17. Nxe2 {[%emt 0:00:45]} Nc6 {[%emt 0:03:53]} 18. Nf3 {[%emt 0:00:47]} Re6 {[%emt 0:06:33]} 19. Bg3 {[%emt 0:00:46]} Nc5 {[%emt 0:02:14]} 20. Qa3 {[%emt 0:06:27]} Nxa5 {[%emt 0:01:26]} 21. Qxa5 {[%emt 0:00:02]} Nb3 {[%emt 0:00:09]} 22. Qa3 {[%emt 0:00:23]} Nxa1 {[%emt 0:00:10]} 23. Qxa1 {[%emt 0:00:04]} Qxc4 {[%emt 0:02:19]} 24. Nc3 {[%emt 0:00:53]} Rxe1+ {[%emt 0:01:07]} 25. Qxe1 {[%emt 0:02:12]} Qb3 {[%emt 0:00:43]} 26. h4 {[%emt 0:12:58]} Qxb2 {[%emt 0:01:11]} 27. Nd5 {[%emt 0:00:02]} a5 {[%emt 0:03:38]} 28. Nc7 {[%emt 0:00:47]} Rd8 {[%emt 0:00:56]} 29. Qxa5 {[%emt 0:00:10]} Qa1+ {[%emt 0:00:17]} 30. Qxa1 {[%emt 0:00:04]} Bxa1 {[%emt 0:00:15]} 31. Kf1 {[%emt 0:00:11]} Bc3 {[%emt 0:01:00]} 32. Ke2 {[%emt 0:00:25]} Ba5 {[%emt 0:00:15]} 33. Nb5 {[%emt 0:03:23]} Rd5 {[%emt 0:00:30]} 34. Nbd4 {[%emt 0:00:24]} Bc3 {[%emt 0:00:55]} 35. Kd3 {[%emt 0:00:16]} Bxd4 {[%emt 0:00:04]} 36. Nxd4 {[%emt 0:00:03]} Ra5 {[%emt 0:00:35]} 37. Kc4 {[%emt 0:01:29]} Ra1 {[%emt 0:00:49]} 38. Bd6 {[%emt 0:00:28]} Ra2 {[%emt 0:01:11]} 39. Bg3 {[%emt 0:00:41]} Ra1 {[%emt 0:00:09]} 40. Kc5 {[%emt 0:00:20]} Rg1 {[%emt 0:00:59]} 41. Kb6 {[%emt 0:36:03]} Rd1 {[%emt 0:32:20]} 42. Nf5 {[%emt 0:01:18]} Rb1+ {[%emt 0:00:45]} 43. Kc5 {[%emt 0:00:10]} f6 {[%emt 0:00:31]} 44. Nd6 {[%emt 0:02:13]} Rg1 {[%emt 0:01:03]} 45. Nxb7 {[%emt 0:00:30]} Rxg2 {[%emt 0:00:08]} 46. Nd6 {[%emt 0:00:39]} Rg1 {[%emt 0:00:10]} 47. Kd5 {[%emt 0:00:18]} Rd1+ {[%emt 0:00:58]} 48. Ke6 {[%emt 0:00:14]} Re1+ {[%emt 0:00:13]} 49. Kf5 {[%emt 0:00:54]} Rh1 {[%emt 0:00:42]} 50. Kg4 {[%emt 0:01:06]} g6 {[%emt 0:00:51]} 51. Bf4 {[%emt 0:00:00]} h5+ {[%emt 0:00:00]} 52. Kg3 {[%emt 0:00:00]} Rg1+ {[%emt 0:00:00]} 53. Kf3 {[%emt 0:00:00]} Rg4 {[%emt 0:00:00]} 54. Bg3 {[%emt 0:00:00]} Ra4 {[%emt 0:00:00]} 55. Ne4 {[%emt 0:00:00]} Kf7 {[%emt 0:00:00]} 56. Ke3 {[%emt 0:00:00]} Ra3+ {[%emt 0:00:00]} 57. Kf4 {[%emt 0:00:00]} Ra4 {[%emt 0:00:00]} 58. Ke3 {[%emt 0:00:00]} Ra3+ {[%emt 0:00:00]} 59. Kf4 {[%emt 0:00:00]} Ra4 {[%emt 0:00:00]} 60. Kf3 {[%emt 0:00:00]} Ra3+ {[%emt 0:00:00]} 61. Kf4 {[%emt 0:00:00]} Ra4 {[%emt 0:00:00]} 62. Kf3 {[%emt 0:00:00]} Ra3+ {[%emt 0:00:00]} 63. Kf4 {[%emt 0:00:00]} Ra4 1/2-1/2

[Event "SWE-ch Masters Elite 2018"]
[Site "Ronneby"]
[Date "2018.06.30"]
[Round "1"]
[White "Ziegler, Ari"]
[Black "Furhoff, Johan"]
[Result "0-1"]
[ECO "C78"]
[WhiteElo "2305"]
[BlackElo "2332"]
[Annotator "NA"]
[PlyCount "128"]
[EventDate "2018.06.30"]
[EventType "tourn"]
[EventCountry "SWE"]
[SourceTitle "playchess.com"]
[Source "ChessBase"]
[SourceQuality "1"]
[TimeControl "40/5400+30:1800+30"]

1. e4 {[%emt 0:02:56]} e5 {[%emt 0:00:00]} 2. Nf3 {[%emt 0:00:06]} Nc6 {[%emt 0:00:00]} 3. Bb5 {[%emt 0:00:06]} a6 {[%emt 0:00:00]} 4. Ba4 {[%emt 0:00:05]} Nf6 {[%emt 0:00:25]} 5. O-O {[%emt 0:00:10]} b5 {[%emt 0:00:08]} 6. Bb3 {[%emt 0:00:07]} Bb7 {[%emt 0:00:08]} 7. d3 {[%emt 0:00:06]} Bc5 {[%emt 0:00:33]} 8. a3 {[%emt 0:00:55]} O-O {[%emt 0:01:21]} 9. Nc3 {[%emt 0:00:09]} Nd4 {[%emt 0:07:44]} 10. Nxe5 {[%emt 0:03:44]} Nxb3 {[%emt 0:06:18]} 11. cxb3 {[%emt 0:02:57]} d5 {[%emt 0:07:13]} 12. Bg5 {[%emt 0:14:10]} Be7 {[%emt 0:07:25]} 13. Re1 {[%emt 0:09:47]} d4 {[%emt 0:12:50]} 14. Ne2 {[%emt 0:07:23]} Nxe4 {[%emt 0:02:10]} 15. dxe4 {[%emt 0:30:20]} Bxg5 {[%emt 0:00:52]} 16. Nxd4 {[%emt 0:03:38]} Bf6 {[%emt 0:04:38]} 17. Nec6 {[%emt 0:08:23]} Qd7 {[%emt 0:07:43]} 18. e5 {[%emt 0:03:25]} Bxc6 {[%emt 0:00:44]} 19. exf6 {[%emt 0:00:30]} Rfd8 {[%emt 0:01:02]} 20. Qc2 {[%emt 0:04:11]} Bxg2 {[%emt 0:05:57]} 21. Nf5 {[%emt 0:00:58]} Bh3 {[%emt 0:00:38]} 22. Ne7+ {[%emt 0:00:24]} Kh8 {[%emt 0:00:31]} 23. Re3 {[%emt 0:02:07]} gxf6 {[%emt 0:01:33]} 24. Qe4 {[%emt 0:02:49]} Be6 {[%emt 0:02:39]} 25. Nc6 {[%emt 0:02:26]} Bd5 {[%emt 0:03:05]} 26. Ne5 {[%emt 0:00:31]} fxe5 {[%emt 0:01:05]} 27. Qxe5+ {[%emt 0:00:07]} f6 {[%emt 0:00:08]} 28. Qxf6+ {[%emt 0:00:05]} Qg7+ {[%emt 0:00:07]} 29. Qxg7+ {[%emt 0:00:05]} Kxg7 {[%emt 0:00:05]} 30. Re7+ {[%emt 0:00:05]} Kf6 {[%emt 0:01:34]} 31. Rxh7 {[%emt 0:00:07]} Rg8+ {[%emt 0:01:25]} 32. Kf1 {[%emt 0:00:03]} Rae8 {[%emt 0:00:33]} 33. Rh6+ {[%emt 0:00:58]} Kg5 {[%emt 0:00:46]} 34. Rh3 {[%emt 0:00:44]} Kf4 {[%emt 0:03:01]} 35. Rg3 {[%emt 0:00:39]} Rh8 {[%emt 0:02:24]} 36. Rd1 {[%emt 0:00:34]} c6 {[%emt 0:00:50]} 37. h3 {[%emt 0:00:26]} Reg8 {[%emt 0:03:53]} 38. Rd4+ {[%emt 0:00:50]} Ke5 {[%emt 0:01:58]} 39. Rdd3 {[%emt 0:00:07]} Rxg3 {[%emt 0:03:28]} 40. Rxg3 {[%emt 0:00:04]} Rh4 {[%emt 0:00:52]} 41. Rc3 {[%emt 0:02:47]} Kf4 {[%emt 0:01:02]} 42. Rg3 {[%emt 0:07:45]} Bf3 {[%emt 0:02:09]} 43. Ke1 {[%emt 0:01:15]} Rh6 {[%emt 0:02:21]} 44. Kd2 {[%emt 0:00:08]} Re6 {[%emt 0:00:53]} 45. Kc3 {[%emt 0:00:14]} Re2 {[%emt 0:00:41]} 46. Rg8 {[%emt 0:01:54]} Rxf2 {[%emt 0:00:31]} 47. Ra8 {[%emt 0:00:56]} Be4 {[%emt 0:01:16]} 48. Rxa6 {[%emt 0:00:43]} c5 {[%emt 0:03:47]} 49. Rf6+ {[%emt 0:02:37]} Bf5 {[%emt 0:00:30]} 50. b4 {[%emt 0:00:22]} Rf3+ {[%emt 0:04:33]} 51. Kd2 {[%emt 0:00:09]} cxb4 {[%emt 0:00:31]} 52. axb4 {[%emt 0:05:32]} Rb3 {[%emt 0:00:15]} 53. Rh6 {[%emt 0:00:45]} Rxb2+ {[%emt 0:06:41]} 54. Kc3 {[%emt 0:00:12]} Rc2+ {[%emt 0:00:08]} 55. Kb3 {[%emt 0:00:07]} Rh2 {[%emt 0:00:35]} 56. h4 {[%emt 0:01:17]} Rh3+ {[%emt 0:01:55]} 57. Kb2 {[%emt 0:00:06]} Bd3 {[%emt 0:00:43]} 58. Kc3 {[%emt 0:01:14]} Ke5 {[%emt 0:01:18]} 59. Rh5+ {[%emt 0:02:11]} Bf5+ {[%emt 0:03:47]} 60. Kb2 {[%emt 0:00:05]} Rf3 {[%emt 0:00:32]} 61. Rh8 {[%emt 0:01:30]} Kd4 {[%emt 0:01:19]} 62. Rf8 {[%emt 0:04:03]} Be4 {[%emt 0:00:19]} 63. Rc8 {[%emt 0:00:25]} Rf2+ {[%emt 0:00:40]} 64. Kc1 {[%emt 0:05:04]} Bd3 {[%emt 0:00:56]} 0-1

[Event "SWE-ch Masters Elite 2018"]
[Site "Ronneby"]
[Date "2018.06.30"]
[Round "1"]
[White "Landgren, Andreas"]
[Black "Malmstig, Erik"]
[Result "1-0"]
[ECO "A61"]
[WhiteElo "2278"]
[BlackElo "2336"]
[Annotator "NA"]
[PlyCount "78"]
[EventDate "2018.06.30"]
[EventType "tourn"]
[EventCountry "SWE"]
[SourceTitle "playchess.com"]
[Source "ChessBase"]
[SourceQuality "1"]
[TimeControl "40/5400+30:1800+30"]

1. d4 {[%emt 0:00:00]} Nf6 {[%emt 0:00:53]} 2. c4 {[%emt 0:00:00]} c5 {[%emt 0:00:13]} 3. d5 {[%emt 0:00:00]} e6 {[%emt 0:00:09]} 4. Nc3 {[%emt 0:00:00]} exd5 {[%emt 0:00:10]} 5. cxd5 {[%emt 0:00:01]} d6 {[%emt 0:00:08]} 6. Nf3 {[%emt 0:00:17]} g6 {[%emt 0:00:09]} 7. h3 {[%emt 0:00:09]} Bg7 {[%emt 0:00:05]} 8. e4 {[%emt 0:00:11]} O-O {[%emt 0:00:12]} 9. Bd3 {[%emt 0:00:08]} a6 {[%emt 0:00:18]} 10. a4 {[%emt 0:00:17]} Re8 {[%emt 0:00:47]} 11. O-O {[%emt 0:00:20]} c4 {[%emt 0:00:32]} 12. Bc2 {[%emt 0:04:15]} Nbd7 {[%emt 0:01:25]} 13. Re1 {[%emt 0:10:09]} Qc7 {[%emt 0:08:01]} 14. Be3 {[%emt 0:07:59]} Nh5 {[%emt 0:08:33]} 15. Qe2 {[%emt 0:30:03]} Ne5 {[%emt 0:14:06]} 16. Nd2 {[%emt 0:01:27]} Bd7 {[%emt 0:12:44]} 17. g4 {[%emt 0:05:34]} Nf6 {[%emt 0:04:10]} 18. f4 {[%emt 0:03:40]} Nd3 {[%emt 0:13:07]} 19. Bxd3 {[%emt 0:00:23]} cxd3 {[%emt 0:00:05]} 20. Qxd3 {[%emt 0:00:07]} Rac8 {[%emt 0:04:47]} 21. Bd4 {[%emt 0:07:23]} Qa5 {[%emt 0:08:38]} 22. Bf2 {[%emt 0:13:32]} Qb4 {[%emt 0:07:56]} 23. Ra3 {[%emt 0:08:59]} Nxg4 {[%emt 0:07:15]} 24. hxg4 {[%emt 0:01:14]} Qxb2 {[%emt 0:00:18]} 25. Nd1 {[%emt 0:00:54]} Qb4 {[%emt 0:01:57]} 26. Ne3 {[%emt 0:01:27]} Bd4 {[%emt 0:02:15]} 27. Rb1 {[%emt 0:02:33]} Qc5 {[%emt 0:00:16]} 28. Nf3 {[%emt 0:00:54]} Bc3 {[%emt 0:01:55]} 29. Nc2 {[%emt 0:01:17]} Qc7 {[%emt 0:01:19]} 30. Bb6 {[%emt 0:00:22]} Qc4 {[%emt 0:00:07]} 31. Qxc4 {[%emt 0:00:11]} Rxc4 {[%emt 0:00:06]} 32. Ne3 {[%emt 0:00:07]} Rcc8 {[%emt 0:00:36]} 33. Rc1 {[%emt 0:00:35]} Bb4 {[%emt 0:00:32]} 34. Rxc8 {[%emt 0:00:23]} Bxc8 {[%emt 0:00:47]} 35. Rb3 {[%emt 0:01:13]} Rxe4 {[%emt 0:00:42]} 36. Ng5 {[%emt 0:01:00]} Rxf4 {[%emt 0:01:00]} 37. Nh3 {[%emt 0:00:03]} Re4 {[%emt 0:00:32]} 38. Nf2 {[%emt 0:00:17]} Rf4 {[%emt 0:01:40]} 39. Nd3 {[%emt 0:00:11]} Re4 1-0

[Event "SWE-ch Masters Elite 2018"]
[Site "Ronneby"]
[Date "2018.06.30"]
[Round "1"]
[White "Lindh, Fredrik"]
[Black "Lundin, Jan"]
[Result "1/2-1/2"]
[ECO "B80"]
[WhiteElo "2273"]
[BlackElo "2282"]
[Annotator "NA"]
[PlyCount "38"]
[EventDate "2018.06.30"]
[EventType "tourn"]
[EventCountry "SWE"]
[SourceTitle "playchess.com"]
[Source "ChessBase"]
[SourceQuality "1"]
[TimeControl "40/5400+30:1800+30"]

1. e4 {[%emt 0:00:35]} c5 {[%emt 0:00:00]} 2. Nf3 {[%emt 0:00:12]} e6 {[%emt 0:00:00]} 3. d4 {[%emt 0:00:15]} cxd4 {[%emt 0:00:00]} 4. Nxd4 {[%emt 0:00:04]} Nf6 {[%emt 0:00:04]} 5. Nc3 {[%emt 0:00:31]} d6 {[%emt 0:00:06]} 6. Be3 {[%emt 0:00:34]} Be7 {[%emt 0:00:13]} 7. f4 {[%emt 0:04:01]} O-O {[%emt 0:01:53]} 8. Qf3 {[%emt 0:00:38]} e5 {[%emt 0:01:52]} 9. Nf5 {[%emt 0:08:59]} Bxf5 {[%emt 0:01:05]} 10. exf5 {[%emt 0:02:26]} Nbd7 {[%emt 0:00:56]} 11. O-O-O {[%emt 0:15:07]} Rc8 {[%emt 0:01:55]} 12. Bb5 {[%emt 0:03:09]} Rxc3 {[%emt 0:11:49]} 13. bxc3 {[%emt 0:00:54]} d5 {[%emt 0:13:06]} 14. Rxd5 {[%emt 0:27:21]} e4 {[%emt 0:22:54]} 15. Rxd7 {[%emt 0:04:35]} Ba3+ {[%emt 0:06:31]} 16. Kb1 {[%emt 0:00:47]} Qa5 {[%emt 0:07:53]} 17. Qe2 {[%emt 0:00:48]} Nxd7 {[%emt 0:00:57]} 18. Bxd7 {[%emt 0:06:47]} Qxc3 {[%emt 0:00:48]} 19. Bc1 {[%emt 0:00:07]} Qb4+ {[%emt 0:06:42]} 1/2-1/2

[Event "SWE-ch Masters Elite 2018"]
[Site "Ronneby"]
[Date "2018.07.01"]
[Round "2"]
[White "Malmstig, Erik"]
[Black "Ziegler, Ari"]
[Result "1-0"]
[ECO "A16"]
[WhiteElo "2336"]
[BlackElo "2305"]
[Annotator "RC"]
[PlyCount "115"]
[EventDate "2018.06.30"]
[EventType "tourn"]
[EventCountry "SWE"]
[SourceTitle "playchess.com"]
[Source "ChessBase"]
[SourceQuality "1"]
[TimeControl "40/5400+30:1800+30"]

1. c4 {[%emt 0:01:07]} Nf6 {[%emt 0:00:35]} 2. Nc3 {[%emt 0:00:21]} g6 {[%emt 0:03:44]} 3. b3 {[%emt 0:02:27]} Bg7 {[%emt 0:00:32]} 4. Bb2 {[%emt 0:00:10]} O-O {[%emt 0:00:58]} 5. e3 {[%emt 0:02:04]} e5 {[%emt 0:00:30]} 6. g4 {[%emt 0:02:07]} d5 {[%emt 0:11:29]} 7. g5 {[%emt 0:03:47]} Ne4 {[%emt 0:00:08]} 8. Nxd5 {[%emt 0:33:44]} Nxg5 {[%emt 0:05:42]} 9. h4 {[%emt 0:05:11]} Ne6 {[%emt 0:00:36]} 10. Nf3 {[%emt 0:04:50]} c6 {[%emt 0:03:47]} 11. Nc3 {[%emt 0:11:09]} e4 {[%emt 0:02:08]} 12. Ng5 {[%emt 0:05:26]} Nxg5 {[%emt 0:01:44]} 13. hxg5 {[%emt 0:00:04]} Bf5 {[%emt 0:01:20]} 14. Qc2 {[%emt 0:06:23]} Qxg5 {[%emt 0:05:16]} 15. O-O-O {[%emt 0:01:19]} Re8 {[%emt 0:00:54]} 16. Bh3 {[%emt 0:00:57]} Bxh3 {[%emt 0:09:53]} 17. Rxh3 {[%emt 0:00:15]} Qf5 {[%emt 0:08:04]} 18. Rdh1 {[%emt 0:02:12]} h5 {[%emt 0:07:32]} 19. f3 {[%emt 0:05:39]} Na6 {[%emt 0:04:20]} 20. fxe4 {[%emt 0:02:10]} Qg5 {[%emt 0:00:26]} 21. a3 {[%emt 0:05:29]} b5 {[%emt 0:03:01]} 22. cxb5 {[%emt 0:02:03]} cxb5 {[%emt 0:00:18]} 23. b4 {[%emt 0:00:59]} Rac8 {[%emt 0:00:37]} 24. Kb1 {[%emt 0:00:18]} Red8 {[%emt 0:04:14]} 25. d4 {[%emt 0:00:24]} Nc7 {[%emt 0:03:27]} 26. Qb3 {[%emt 0:00:47]} Qg2 {[%emt 0:09:12]} 27. R3h2 {[%emt 0:00:15]} Qf3 {[%emt 0:05:13]} 28. Rh3 {[%emt 0:00:11]} Qg4 {[%emt 0:01:05]} 29. Rh4 {[%emt 0:00:27]} Qd7 {[%emt 0:00:47]} 30. Rg1 {[%emt 0:00:56]} Ne6 {[%emt 0:02:23]} 31. e5 {[%emt 0:00:37]} Nf8 {[%emt 0:01:51]} 32. Ne4 {[%emt 0:00:50]} Rc4 {[%emt 0:01:05]} 33. Nd6 {[%emt 0:00:58]} Qe7 {[%emt 0:00:29]} 34. Rf4 {[%emt 0:00:33]} Rxd6 {[%emt 0:00:34]} 35. exd6 {[%emt 0:00:06]} Qxd6 {[%emt 0:00:09]} 36. Rgf1 {[%emt 0:00:08]} f5 {[%emt 0:01:03]} 37. Rc1 {[%emt 0:01:05]} Qd5 {[%emt 0:00:20]} 38. Rxc4 {[%emt 0:00:31]} bxc4 {[%emt 0:00:06]} 39. Qc2 {[%emt 0:00:43]} Ne6 {[%emt 0:00:19]} 40. Rf1 {[%emt 0:00:18]} Ng5 {[%emt 0:02:25]} 41. Rc1 {[%emt 0:06:33]} Ne4 {[%emt 0:02:58]} 42. Ka1 {[%emt 0:00:29]} h4 {[%emt 0:04:53]} 43. Qh2 {[%emt 0:03:23]} g5 {[%emt 0:02:01]} 44. Qb8+ {[%emt 0:00:59]} Kh7 {[%emt 0:01:31]} 45. Qxa7 {[%emt 0:01:01]} h3 {[%emt 0:06:51]} 46. Qc7 {[%emt 0:10:09]} f4 {[%emt 0:04:20]} 47. exf4 {[%emt 0:05:01]} c3 {[%emt 0:02:06]} 48. Rxc3 {[%emt 0:01:34]} g4 {[%emt 0:05:06]} 49. Rc1 {[%emt 0:01:15]} g3 {[%emt 0:01:14]} 50. b5 {[%emt 0:02:47]} h2 {[%emt 0:00:54]} 51. f5 {[%emt 0:01:12]} Qxf5 {[%emt 0:04:07]} 52. b6 {[%emt 0:01:45]} Nd2 {[%emt 0:01:11]} 53. Qxg3 {[%emt 0:00:33]} Nf3 {[%emt 0:00:11]} 54. b7 {[%emt 0:00:23]} Qh5 {[%emt 0:00:10]} 55. b8=Q {[%emt 0:00:48]} h1=Q {[%emt 0:00:02]} 56. Rxh1 {[%emt 0:00:02]} Qxh1+ {[%emt 0:00:18]} 57. Ka2 {[%emt 0:00:25]} Qf1 {[%emt 0:00:27]} 58. Qb3 {[%emt 0:00:22]} 1-0

[Event "SWE-ch Masters Elite 2018"]
[Site "Ronneby"]
[Date "2018.07.01"]
[Round "2"]
[White "Lundin, Jan"]
[Black "Furhoff, Johan"]
[Result "1/2-1/2"]
[ECO "C45"]
[WhiteElo "2282"]
[BlackElo "2332"]
[Annotator "NA"]
[PlyCount "48"]
[EventDate "2018.06.30"]
[EventType "tourn"]
[EventCountry "SWE"]
[SourceTitle "playchess.com"]
[Source "ChessBase"]
[SourceQuality "1"]
[TimeControl "40/5400+30:1800+30"]

{[%evp 18,47,16,32,27,0,8,7,3,0,0,5,28,25,35,77,87,56,106,133,129,156,152,147,32767,66,32767,32767,62,59,39,0]} 1. e4 {[%emt 0:00:00]} e5 {[%emt 0:00:00]} 2. Nf3 {[%emt 0:00:00]} Nc6 {[%emt 0:00:00]} 3. d4 {[%emt 0:00:00]} exd4 {[%emt 0:00:00]} 4. Nxd4 {[%emt 0:00:00]} Bc5 {[%emt 0:00:08]} 5. Nxc6 {[%emt 0:00:22]} Qf6 {[%emt 0:00:19]} 6. Qf3 {[%emt 0:00:16]} Qxf3 {[%emt 0:01:21]} 7. gxf3 {[%emt 0:00:09]} bxc6 {[%emt 0:00:10]} 8. Rg1 {[%emt 0:04:35] C45: Scotch Game} (8. Nd2 Ne7 9. Nb3 Bb6 10. c4 c5 11. Be3 d6 12. h4 Nc6 13. h5 Nd4 14. O-O-O Nxf3 15. Be2 Ne5 {0-1 (41) Chigaev,M (2555)-McShane,L (2640) Katowice 2017}) 8... Ne7 {[%emt 0:00:16]} 9. Be3 {[%emt 0:03:25]} Bxe3 {[%emt 0:04:04]} 10. fxe3 {[%emt 0:00:07]} O-O {[%emt 0:00:35]} 11. Bd3 $146 {[%emt 0:18:10]} ({Predecessor:} 11. Nc3 f5 12. f4 d6 13. e5 dxe5 14. Bc4+ Kh8 15. O-O-O Ng6 16. Ne2 Nh4 17. Rg3 e4 18. Nd4 c5 19. Nc6 Nf3 20. Ne7 g6 21. Rh3 {1-0 (21) Bitalzadeh,A (2339)-Rothuis,V (2354) Netherlands 2007}) 11... f5 {[%emt 0:09:06]} 12. Nd2 {[%emt 0:02:07]} d6 {[%emt 0:10:52]} 13. Ke2 {[%emt 0:09:30]} Rb8 {[%emt 0:02:34]} 14. b3 {[%emt 0:01:12]} f4 {[%emt 0:12:13]} 15. Rg5 {[%emt 0:04:08]} Be6 {[%emt 0:10:10]} 16. Rag1 {[%emt 0:01:24]} g6 {[%emt 0:00:43]} 17. h4 {[%emt 0:01:10]} h6 {[%emt 0:03:20]} (17... c5 $14) 18. Ra5 {[%emt 0:03:00]} Rb7 {[%emt 0:02:14]} 19. e5 {[%emt 0:19:00]} fxe3 {[%emt 0:01:42]} 20. Ne4 {[%emt 0:02:04]} Bf5 {[%emt 0:06:56]} 21. exd6 {[%emt 0:09:12]} (21. Kxe3 $16 Be6 22. exd6 cxd6 23. Nxd6) 21... cxd6 {[%emt 0:00:58]} 22. Nxd6 {[%emt 0:00:48]} Bxd3+ {[%emt 0:01:16]} 23. cxd3 {[%emt 0:00:10]} ({Avoid the trap} 23. Kxd3 $2 Rd7 $19) 23... Rd7 {[%emt 0:00:50]} 24. Re5 $11 {[%emt 0:01:30]} (24. Nc4 $14) 24... Nd5 1/2-1/2